[Event "*** Titled Tuesday Blitz"]
[Site "Chess.com"]
[Date "2021.02.02"]
[Round "8"]
[White "dennisodessa"]
[Black "Kovalchuk94"]
[Result "0-1"]
[WhiteElo "2472"]
[BlackElo "2642"]
[TimeControl "180+1"]
[EndTime "11:29:04 PST"]
[Termination "Kovalchuk94 won by resignation"]

1. d4 {[%clk 0:02:59.9]} 1... Nf6 {[%clk 0:02:58.9]} 2. c4 {[%clk 0:02:59.5]}
2... c5 {[%clk 0:02:57.2]} 3. d5 {[%clk 0:02:59.7]} 3... b5 {[%clk 0:02:57.2]}
4. cxb5 {[%clk 0:03:00.6]} 4... a6 {[%clk 0:02:57.1]} 5. bxa6 {[%clk 0:03:01.5]}
5... Bxa6 {[%clk 0:02:57.1]} 6. Nc3 {[%clk 0:03:02.4]} 6... d6 {[%clk
0:02:55.7]} 7. Nf3 {[%clk 0:03:01.6]} 7... g6 {[%clk 0:02:55.2]} 8. e4 {[%clk
0:03:01.9]} 8... Bxf1 {[%clk 0:02:54.7]} 9. Kxf1 {[%clk 0:03:02.4]} 9... Nbd7
{[%clk 0:02:55.3]} 10. g3 {[%clk 0:03:02.8]} 10... Bg7 {[%clk 0:02:55.3]} 11.
Kg2 {[%clk 0:03:02.7]} 11... O-O {[%clk 0:02:55.7]} 12. a4 {[%clk 0:03:02.6]}
12... Qb6 {[%clk 0:02:50.1]} 13. Qe2 {[%clk 0:02:53.4]} 13... Rfb8 {[%clk
0:02:49.4]} 14. Nb5 {[%clk 0:02:53.1]} 14... Ne8 {[%clk 0:02:47.3]} 15. Nd2
{[%clk 0:02:52.1]} 15... Nc7 {[%clk 0:02:43.3]} 16. Nc4 {[%clk 0:02:51.8]} 16...
Qb7 {[%clk 0:02:43.7]} 17. Nxc7 {[%clk 0:02:46.1]} 17... Qxc7 {[%clk 0:02:44.6]}
18. Bd2 {[%clk 0:02:27.6]} 18... Bxb2 {[%clk 0:02:36.3]} 19. Nxb2 {[%clk
0:02:28]} 19... Rxb2 {[%clk 0:02:37.2]} 20. Qe3 {[%clk 0:02:25.2]} 20... Ne5
{[%clk 0:02:24.7]} 21. Rhc1 {[%clk 0:01:51.7]} 21... Qb7 {[%clk 0:02:06.3]} 22.
h3 {[%clk 0:01:45.5]} 22... Qa6 {[%clk 0:01:48.7]} 23. Bc3 {[%clk 0:01:33.8]}
23... Re2 {[%clk 0:01:43]} 24. Qh6 {[%clk 0:01:18.5]} 24... Rxe4 {[%clk
0:01:28.7]} 25. Re1 {[%clk 0:01:13.2]} 25... Qd3 {[%clk 0:01:20.5]} 26. Bxe5
{[%clk 0:01:12.8]} 26... Rxe5 {[%clk 0:01:15.3]} 27. Rxe5 {[%clk 0:01:03.3]}
27... dxe5 {[%clk 0:01:15.1]} 28. Qe3 {[%clk 0:01:03.7]} 28... Qxd5+ {[%clk
0:01:14.8]} 29. f3 {[%clk 0:01:01.3]} 29... c4 {[%clk 0:01:15]} 30. Qc3 {[%clk
0:00:59]} 30... Qd4 {[%clk 0:01:11.8]} 31. Qxd4 {[%clk 0:00:55]} 31... exd4
{[%clk 0:01:11.6]} 32. a5 {[%clk 0:00:54.8]} 32... e5 {[%clk 0:01:06.3]} 33. a6
{[%clk 0:00:53.1]} 33... f5 {[%clk 0:01:05.5]} 34. a7 {[%clk 0:00:51.7]} 34...
c3 {[%clk 0:01:03.6]} 35. Kf2 {[%clk 0:00:51.3]} 35... e4 {[%clk 0:01:03.5]} 36.
fxe4 {[%clk 0:00:52.2]} 36... fxe4 {[%clk 0:01:04.4]} 37. Ke2 {[%clk 0:00:52.8]}
37... d3+ {[%clk 0:01:03.5]} 38. Ke3 {[%clk 0:00:52.7]} 38... c2 {[%clk
0:01:02.2]} 39. Kd2 {[%clk 0:00:46.4]} 39... Kf7 {[%clk 0:00:59.9]} 40. Ra4
{[%clk 0:00:43.7]} 40... e3+ {[%clk 0:00:51.7]} 41. Kxd3 {[%clk 0:00:41.8]}
41... c1=Q {[%clk 0:00:50.8]} 0-1

[Event "*** Titled Tuesday Blitz"]
[Site "Chess.com"]
[Date "2021.02.02"]
[Round "8"]
[White "federicosellitti"]
[Black "FontVella8"]
[Result "1-0"]
[WhiteElo "2457"]
[BlackElo "2574"]
[TimeControl "180+1"]
[EndTime "11:29:04 PST"]
[Termination "federicosellitti won by resignation"]

1. e4 {[%clk 0:03:00.9]} 1... e6 {[%clk 0:02:55.2]} 2. b3 {[%clk 0:03:01.1]}
2... d5 {[%clk 0:02:55.9]} 3. Bb2 {[%clk 0:03:01.5]} 3... Nf6 {[%clk 0:02:56.3]}
4. exd5 {[%clk 0:03:01.3]} 4... exd5 {[%clk 0:02:56.4]} 5. Qe2+ {[%clk
0:03:01.9]} 5... Be6 {[%clk 0:02:54.4]} 6. Nf3 {[%clk 0:03:00.8]} 6... Be7
{[%clk 0:02:54.8]} 7. Nd4 {[%clk 0:02:58.9]} 7... Qd7 {[%clk 0:02:52.4]} 8. Nxe6
{[%clk 0:02:51.7]} 8... fxe6 {[%clk 0:02:53.3]} 9. g3 {[%clk 0:02:51.7]} 9...
O-O {[%clk 0:02:53.3]} 10. Bh3 {[%clk 0:02:51.1]} 10... Ne4 {[%clk 0:02:23.6]}
11. O-O {[%clk 0:02:34.6]} 11... Nc6 {[%clk 0:02:19]} 12. d3 {[%clk 0:02:09.9]}
12... Ng5 {[%clk 0:02:18.5]} 13. Bg4 {[%clk 0:02:10.5]} 13... Bf6 {[%clk
0:02:06.2]} 14. c3 {[%clk 0:01:59.2]} 14... Rae8 {[%clk 0:02:03.7]} 15. f4
{[%clk 0:01:56.3]} 15... Nf7 {[%clk 0:02:01.7]} 16. d4 {[%clk 0:01:56.9]} 16...
Nh6 {[%clk 0:01:53.2]} 17. Bh3 {[%clk 0:01:54.2]} 17... Nf5 {[%clk 0:01:52.9]}
18. Nd2 {[%clk 0:01:51.7]} 18... g6 {[%clk 0:01:44.2]} 19. Nf3 {[%clk
0:01:51.5]} 19... Qd6 {[%clk 0:01:42.3]} 20. Rae1 {[%clk 0:01:51.4]} 20... Nd8
{[%clk 0:01:36.2]} 21. a4 {[%clk 0:01:40.6]} 21... c5 {[%clk 0:01:32.3]} 22. Ba3
{[%clk 0:01:39.3]} 22... b6 {[%clk 0:01:32.6]} 23. Rd1 {[%clk 0:01:29]} 23...
Bg7 {[%clk 0:01:16.1]} 24. c4 {[%clk 0:01:13.6]} 24... Nc6 {[%clk 0:01:05.2]}
25. dxc5 {[%clk 0:01:12.2]} 25... bxc5 {[%clk 0:01:04.4]} 26. Qf2 {[%clk
0:01:11]} 26... d4 {[%clk 0:00:55.5]} 27. g4 {[%clk 0:01:11.1]} 27... Nh6 {[%clk
0:00:44.8]} 28. Nd2 {[%clk 0:01:11.7]} 28... Nb4 {[%clk 0:00:29.2]} 29. Bxb4
{[%clk 0:01:11.5]} 29... cxb4 {[%clk 0:00:29.2]} 30. Ne4 {[%clk 0:01:12.4]}
30... Qc7 {[%clk 0:00:26.5]} 31. Rde1 {[%clk 0:01:12.8]} 31... e5 {[%clk
0:00:26.2]} 32. f5 {[%clk 0:01:10.4]} 32... a5 {[%clk 0:00:14.8]} 33. f6 {[%clk
0:01:07.1]} 33... Rf7 {[%clk 0:00:11.7]} 34. g5 {[%clk 0:01:04.4]} 34... Nf5
{[%clk 0:00:09]} 35. fxg7 {[%clk 0:01:03.2]} 35... Ne3 {[%clk 0:00:08.2]} 36.
Qxf7+ {[%clk 0:00:59.7]} 36... Qxf7 {[%clk 0:00:08.1]} 37. Rxf7 {[%clk
0:01:00.6]} 37... Kxf7 {[%clk 0:00:09]} 38. Nd6+ {[%clk 0:01:01.3]} 1-0

[Event "*** Titled Tuesday Blitz"]
[Site "Chess.com"]
[Date "2021.02.02"]
[Round "8"]
[White "EmirhanTarlabasi"]
[Black "Taabling"]
[Result "0-1"]
[WhiteElo "2465"]
[BlackElo "2338"]
[TimeControl "180+1"]
[EndTime "11:29:04 PST"]
[Termination "Taabling won by resignation"]

1. d4 {[%clk 0:03:00.9]} 1... Nf6 {[%clk 0:02:54.2]} 2. c4 {[%clk 0:02:59.4]}
2... g6 {[%clk 0:02:54.7]} 3. Nc3 {[%clk 0:02:59.9]} 3... Bg7 {[%clk 0:02:54.5]}
4. e4 {[%clk 0:03:00.5]} 4... d6 {[%clk 0:02:55.1]} 5. f4 {[%clk 0:03:01]} 5...
O-O {[%clk 0:02:55.6]} 6. Nf3 {[%clk 0:03:01.2]} 6... c5 {[%clk 0:02:54.7]} 7.
d5 {[%clk 0:03:01.7]} 7... e6 {[%clk 0:02:54.5]} 8. Be2 {[%clk 0:02:59.7]} 8...
exd5 {[%clk 0:02:54.2]} 9. cxd5 {[%clk 0:03:00.6]} 9... Re8 {[%clk 0:02:54.4]}
10. e5 {[%clk 0:02:58.8]} 10... dxe5 {[%clk 0:02:51.8]} 11. fxe5 {[%clk
0:02:59]} 11... Ng4 {[%clk 0:02:52.3]} 12. e6 {[%clk 0:02:58.6]} 12... fxe6
{[%clk 0:02:51.4]} 13. d6 {[%clk 0:02:58.7]} 13... Nc6 {[%clk 0:02:46.8]} 14.
O-O {[%clk 0:02:56.7]} 14... Nd4 {[%clk 0:02:33.6]} 15. Ne4 {[%clk 0:02:54.4]}
15... Qb6 {[%clk 0:02:03.1]} 16. h3 {[%clk 0:02:19.3]} 16... c4 {[%clk
0:01:54.1]} 17. Kh1 {[%clk 0:02:08]} 17... Nxf3 {[%clk 0:01:39]} 18. Bxf3 {[%clk
0:01:39.3]} 18... Ne5 {[%clk 0:01:35.6]} 19. Bg4 {[%clk 0:01:33.6]} 19... Bd7
{[%clk 0:01:33.6]} 20. Bg5 {[%clk 0:01:27.6]} 20... Rf8 {[%clk 0:01:25.4]} 21.
Qd2 {[%clk 0:01:24.2]} 21... Nxg4 {[%clk 0:01:23.2]} 22. hxg4 {[%clk 0:01:23.2]}
22... Qxb2 {[%clk 0:01:20.3]} 23. Nc5 {[%clk 0:00:25.4]} 23... Qxd2 {[%clk
0:01:14]} 24. Bxd2 {[%clk 0:00:26.3]} 24... Bxa1 {[%clk 0:01:11.5]} 25. Rxa1
{[%clk 0:00:23.3]} 25... Bc6 {[%clk 0:01:08]} 26. Bc3 {[%clk 0:00:23.5]} 26...
Rf2 {[%clk 0:01:04]} 27. Rd1 {[%clk 0:00:18.9]} 27... Rxg2 {[%clk 0:01:02.2]}
28. Rg1 {[%clk 0:00:10.5]} 28... Rf2+ {[%clk 0:00:52.5]} 29. Rg2 {[%clk
0:00:09.9]} 29... Rxg2 {[%clk 0:00:52]} 30. Ne4 {[%clk 0:00:09.1]} 30... Bxe4
{[%clk 0:00:50.1]} 31. d7 {[%clk 0:00:10]} 31... Rc2+ {[%clk 0:00:47.5]} 32. Kg1
{[%clk 0:00:09.6]} 32... Rxc3 {[%clk 0:00:47.3]} 0-1

[Event "*** Titled Tuesday Blitz"]
[Site "Chess.com"]
[Date "2021.02.02"]
[Round "8"]
[White "oogee"]
[Black "kamilianin235"]
[Result "1-0"]
[WhiteElo "2343"]
[BlackElo "2218"]
[TimeControl "180+1"]
[EndTime "11:29:06 PST"]
[Termination "oogee won on time"]

1. d4 {[%clk 0:03:00.9]} 1... d5 {[%clk 0:02:58.3]} 2. c4 {[%clk 0:03:00]} 2...
dxc4 {[%clk 0:02:55.7]} 3. Nf3 {[%clk 0:02:53.8]} 3... Nf6 {[%clk 0:02:41.1]} 4.
e3 {[%clk 0:02:46.9]} 4... e6 {[%clk 0:02:39.1]} 5. Bxc4 {[%clk 0:02:46.5]} 5...
c5 {[%clk 0:02:35.6]} 6. O-O {[%clk 0:02:41]} 6... a6 {[%clk 0:02:32.5]} 7. Nc3
{[%clk 0:02:20.7]} 7... b5 {[%clk 0:02:27.9]} 8. Bb3 {[%clk 0:02:20.9]} 8...
Nbd7 {[%clk 0:02:24.2]} 9. d5 {[%clk 0:02:14.5]} 9... exd5 {[%clk 0:02:18.4]}
10. Bxd5 {[%clk 0:02:09.6]} 10... Nxd5 {[%clk 0:02:15.6]} 11. Qxd5 {[%clk
0:02:08.9]} 11... Rb8 {[%clk 0:02:13.8]} 12. Ng5 {[%clk 0:02:00.2]} 12... Qf6
{[%clk 0:02:05.9]} 13. Nce4 {[%clk 0:01:57.9]} 13... Qg6 {[%clk 0:02:04.8]} 14.
f4 {[%clk 0:01:47.2]} 14... Bb7 {[%clk 0:02:00.1]} 15. Qd3 {[%clk 0:01:26.7]}
15... h6 {[%clk 0:01:49.7]} 16. f5 {[%clk 0:01:26.4]} 16... Qc6 {[%clk
0:01:47.6]} 17. Rf2 {[%clk 0:00:53.7]} 17... hxg5 {[%clk 0:01:42]} 18. Nxg5
{[%clk 0:00:53.7]} 18... Ne5 {[%clk 0:01:41.1]} 19. Qe2 {[%clk 0:00:47.3]} 19...
Rd8 {[%clk 0:01:33]} 20. e4 {[%clk 0:00:44.9]} 20... Be7 {[%clk 0:01:25.5]} 21.
Be3 {[%clk 0:00:28.9]} 1-0

[Event "*** Titled Tuesday Blitz"]
[Site "Chess.com"]
[Date "2021.02.02"]
[Round "8"]
[White "FairChess_on_YouTube"]
[Black "KuzubovYuriy"]
[Result "1-0"]
[WhiteElo "2935"]
[BlackElo "2838"]
[TimeControl "180+1"]
[EndTime "11:29:10 PST"]
[Termination "FairChess_on_YouTube won on time"]

1. e4 {[%clk 0:03:00.9]} 1... c5 {[%clk 0:02:59.3]} 2. Nc3 {[%clk 0:02:59.9]}
2... d6 {[%clk 0:02:57.2]} 3. Nge2 {[%clk 0:03:00]} 3... Nf6 {[%clk 0:02:55.9]}
4. h3 {[%clk 0:03:00]} 4... e5 {[%clk 0:02:47.7]} 5. g4 {[%clk 0:02:56.1]} 5...
d5 {[%clk 0:02:45.9]} 6. exd5 {[%clk 0:02:54.4]} 6... Nxd5 {[%clk 0:02:45.1]} 7.
Bg2 {[%clk 0:02:54.5]} 7... Nxc3 {[%clk 0:02:38.7]} 8. dxc3 {[%clk 0:02:55.4]}
8... Qxd1+ {[%clk 0:02:35.5]} 9. Kxd1 {[%clk 0:02:56.3]} 9... Nc6 {[%clk
0:02:33.6]} 10. Be3 {[%clk 0:02:56.2]} 10... Be6 {[%clk 0:02:19]} 11. Ng3 {[%clk
0:02:55.9]} 11... O-O-O+ {[%clk 0:02:18.2]} 12. Kc1 {[%clk 0:02:55.7]} 12... Kc7
{[%clk 0:02:11.2]} 13. a4 {[%clk 0:02:42.9]} 13... f6 {[%clk 0:01:32.2]} 14. a5
{[%clk 0:02:41.3]} 14... c4 {[%clk 0:01:04.6]} 15. Ra4 {[%clk 0:02:23.3]} 15...
Kb8 {[%clk 0:00:58.8]} 16. Re1 {[%clk 0:02:02.5]} 16... Bf7 {[%clk 0:00:47.7]}
17. g5 {[%clk 0:01:56.8]} 17... fxg5 {[%clk 0:00:41.2]} 18. Bxg5 {[%clk
0:01:54.6]} 18... Rc8 {[%clk 0:00:40.9]} 19. Ne4 {[%clk 0:01:52.2]} 19... h6
{[%clk 0:00:33.8]} 20. Be3 {[%clk 0:01:47.4]} 20... Be7 {[%clk 0:00:29.1]} 21.
f4 {[%clk 0:01:32.7]} 21... exf4 {[%clk 0:00:18]} 22. Bxf4+ {[%clk 0:01:32.4]}
22... Ka8 {[%clk 0:00:18.2]} 23. a6 {[%clk 0:00:44.5]} 23... b5 {[%clk
0:00:18.2]} 24. Ra5 {[%clk 0:00:45.1]} 24... Nxa5 {[%clk 0:00:07.9]} 25. Nd6+
{[%clk 0:00:41]} 25... Nc6 {[%clk 0:00:03.8]} 26. Rxe7 {[%clk 0:00:37.3]} 26...
Bg6 {[%clk 0:00:01.3]} 27. Nxb5 {[%clk 0:00:37]} 1-0

[Event "*** Titled Tuesday Blitz"]
[Site "Chess.com"]
[Date "2021.02.02"]
[Round "8"]
[White "ChelsieMonica"]
[Black "Vesper2018"]
[Result "0-1"]
[WhiteElo "2381"]
[BlackElo "2589"]
[TimeControl "180+1"]
[EndTime "11:29:13 PST"]
[Termination "Vesper2018 won on time"]

1. c4 {[%clk 0:03:00.9]} 1... e5 {[%clk 0:02:58.9]} 2. Nc3 {[%clk 0:03:00]} 2...
d6 {[%clk 0:02:56.5]} 3. Nf3 {[%clk 0:02:59.6]} 3... f5 {[%clk 0:02:53.8]} 4. d3
{[%clk 0:02:59.2]} 4... Nc6 {[%clk 0:02:50.6]} 5. g3 {[%clk 0:02:58.9]} 5... g6
{[%clk 0:02:50.2]} 6. Bg2 {[%clk 0:02:58.9]} 6... Bg7 {[%clk 0:02:50.7]} 7. O-O
{[%clk 0:02:59.1]} 7... Nf6 {[%clk 0:02:50.9]} 8. e4 {[%clk 0:02:59]} 8... O-O
{[%clk 0:02:48.9]} 9. Nd5 {[%clk 0:02:56.1]} 9... fxe4 {[%clk 0:02:40.6]} 10.
Nxf6+ {[%clk 0:02:55.8]} 10... Qxf6 {[%clk 0:02:39.7]} 11. dxe4 {[%clk
0:02:53.1]} 11... Bg4 {[%clk 0:02:36.5]} 12. Qd5+ {[%clk 0:02:52.8]} 12... Kh8
{[%clk 0:02:24.7]} 13. Bg5 {[%clk 0:02:34]} 13... Qf7 {[%clk 0:02:24.3]} 14.
Qxf7 {[%clk 0:02:22.6]} 14... Rxf7 {[%clk 0:02:24]} 15. Nd2 {[%clk 0:02:23.2]}
15... Nd4 {[%clk 0:02:21.8]} 16. f3 {[%clk 0:02:19.2]} 16... Be6 {[%clk
0:02:20]} 17. b3 {[%clk 0:02:17.3]} 17... h6 {[%clk 0:02:19]} 18. Be3 {[%clk
0:02:16.7]} 18... Nc2 {[%clk 0:02:18]} 19. Rae1 {[%clk 0:02:12.2]} 19... Nxe1
{[%clk 0:02:14.8]} 20. Rxe1 {[%clk 0:02:13.1]} 20... c6 {[%clk 0:02:13.3]} 21.
h3 {[%clk 0:02:11.8]} 21... d5 {[%clk 0:02:08.1]} 22. exd5 {[%clk 0:01:49.2]}
22... cxd5 {[%clk 0:02:07.6]} 23. f4 {[%clk 0:01:49.7]} 23... dxc4 {[%clk
0:01:34.9]} 24. bxc4 {[%clk 0:01:50.6]} 24... exf4 {[%clk 0:01:25.2]} 25. Bxf4
{[%clk 0:01:49]} 25... Re8 {[%clk 0:01:25.7]} 26. h4 {[%clk 0:01:36.5]} 26...
Bd7 {[%clk 0:01:22.4]} 27. Rd1 {[%clk 0:00:43.4]} 27... Bc6 {[%clk 0:01:18.9]}
28. Bxc6 {[%clk 0:00:17.7]} 28... bxc6 {[%clk 0:01:18.3]} 29. Nb3 {[%clk
0:00:16.6]} 29... Re2 {[%clk 0:01:16]} 30. Rd6 {[%clk 0:00:12.2]} 30... Rxa2
{[%clk 0:01:11.5]} 31. Rxg6 {[%clk 0:00:12.2]} 31... a5 {[%clk 0:01:05.7]} 32.
Rxc6 {[%clk 0:00:12.2]} 32... a4 {[%clk 0:01:05.6]} 33. Nc5 {[%clk 0:00:10.5]}
33... a3 {[%clk 0:01:04.8]} 34. Rc8+ {[%clk 0:00:09.4]} 34... Kh7 {[%clk
0:01:03.4]} 35. Ne6 {[%clk 0:00:09.7]} 35... Rb2 {[%clk 0:00:59.2]} 0-1

[Event "*** Titled Tuesday Blitz"]
[Site "Chess.com"]
[Date "2021.02.02"]
[Round "8"]
[White "CalinGheorghiu"]
[Black "Oligan22"]
[Result "1/2-1/2"]
[WhiteElo "2280"]
[BlackElo "2510"]
[TimeControl "180+1"]
[EndTime "11:29:14 PST"]
[Termination "Game drawn by repetition"]

1. e4 {[%clk 0:02:45.5]} 1... c6 {[%clk 0:02:59.8]} 2. Nf3 {[%clk 0:02:40.4]}
2... d5 {[%clk 0:03:00.7]} 3. Nc3 {[%clk 0:02:41]} 3... dxe4 {[%clk 0:03:00.6]}
4. Nxe4 {[%clk 0:02:41.3]} 4... Nf6 {[%clk 0:03:01.5]} 5. Nxf6+ {[%clk
0:02:40.7]} 5... exf6 {[%clk 0:03:02.4]} 6. d4 {[%clk 0:02:37.5]} 6... Bd6
{[%clk 0:03:02.8]} 7. c3 {[%clk 0:02:34.3]} 7... O-O {[%clk 0:03:03.7]} 8. Bd3
{[%clk 0:02:34.8]} 8... Re8+ {[%clk 0:03:03.9]} 9. Be3 {[%clk 0:02:35]} 9... Bg4
{[%clk 0:03:04.3]} 10. h3 {[%clk 0:02:32.8]} 10... Bh5 {[%clk 0:03:03.9]} 11. g4
{[%clk 0:02:33.1]} 11... Bg6 {[%clk 0:03:04]} 12. Qd2 {[%clk 0:02:32.8]} 12...
Bf4 {[%clk 0:02:46.9]} 13. O-O-O {[%clk 0:02:28.2]} 13... Bxe3 {[%clk
0:02:43.9]} 14. fxe3 {[%clk 0:02:29.1]} 14... Qd5 {[%clk 0:02:43.9]} 15. Nh4
{[%clk 0:02:21.7]} 15... Qxa2 {[%clk 0:02:40.4]} 16. Nxg6 {[%clk 0:02:18.9]}
16... fxg6 {[%clk 0:02:25.7]} 17. h4 {[%clk 0:02:12.2]} 17... Nd7 {[%clk
0:02:23]} 18. g5 {[%clk 0:02:09.4]} 18... Qa1+ {[%clk 0:02:03.8]} 19. Bb1 {[%clk
0:02:00.9]} 19... b5 {[%clk 0:01:53.3]} 20. h5 {[%clk 0:01:58.3]} 20... gxh5
{[%clk 0:01:36.2]} 21. Rxh5 {[%clk 0:01:49.2]} 21... g6 {[%clk 0:01:34.1]} 22.
Rh6 {[%clk 0:01:03.7]} 22... f5 {[%clk 0:01:28.9]} 23. Rdh1 {[%clk 0:00:54.7]}
23... Nf8 {[%clk 0:01:28.1]} 24. Qh2 {[%clk 0:00:51.9]} 24... Re7 {[%clk
0:01:23.8]} 25. Qd6 {[%clk 0:00:50]} 25... Rae8 {[%clk 0:01:09.6]} 26. Qxc6
{[%clk 0:00:45.1]} 26... Rxe3 {[%clk 0:01:07.2]} 27. Qd5+ {[%clk 0:00:40.1]}
27... Kg7 {[%clk 0:00:54.4]} 28. Rxh7+ {[%clk 0:00:13.6]} 28... Nxh7 {[%clk
0:00:52]} 29. Rxh7+ {[%clk 0:00:14.2]} 29... Kxh7 {[%clk 0:00:45.4]} 30. Qf7+
{[%clk 0:00:14.8]} 30... Kh8 {[%clk 0:00:45.3]} 31. Qf6+ {[%clk 0:00:15.4]}
31... Kh7 {[%clk 0:00:41.4]} 32. Qf7+ {[%clk 0:00:14.9]} 32... Kh8 {[%clk
0:00:41.5]} 33. Qf6+ {[%clk 0:00:13.6]} 33... Kh7 {[%clk 0:00:37.4]} 34. Qf7+
{[%clk 0:00:12.4]} 1/2-1/2

[Event "*** Titled Tuesday Blitz"]
[Site "Chess.com"]
[Date "2021.02.02"]
[Round "8"]
[White "markowskitomasz"]
[Black "ShimanovAlex"]
[Result "0-1"]
[WhiteElo "2642"]
[BlackElo "2835"]
[TimeControl "180+1"]
[EndTime "11:29:15 PST"]
[Termination "ShimanovAlex won by resignation"]

1. d4 {[%clk 0:02:28.8]} 1... d5 {[%clk 0:02:23]} 2. Nf3 {[%clk 0:02:13]} 2...
Bg4 {[%clk 0:02:11.6]} 3. Ne5 {[%clk 0:02:12.2]} 3... Be6 {[%clk 0:02:08.1]} 4.
Bf4 {[%clk 0:02:01.7]} 4... f6 {[%clk 0:02:04.9]} 5. Nf3 {[%clk 0:01:57.6]} 5...
g5 {[%clk 0:02:04.5]} 6. Bg3 {[%clk 0:01:57.3]} 6... h5 {[%clk 0:02:03.8]} 7. h4
{[%clk 0:01:56.7]} 7... g4 {[%clk 0:02:04]} 8. Nfd2 {[%clk 0:01:55.8]} 8... Nc6
{[%clk 0:02:02.5]} 9. e3 {[%clk 0:01:55]} 9... Nh6 {[%clk 0:02:02.2]} 10. a3
{[%clk 0:01:47.3]} 10... Nf5 {[%clk 0:02:00.4]} 11. Bf4 {[%clk 0:01:47]} 11...
Bf7 {[%clk 0:01:55.6]} 12. Bb5 {[%clk 0:01:44.3]} 12... Qd7 {[%clk 0:01:54.7]}
13. c4 {[%clk 0:01:32.5]} 13... a6 {[%clk 0:01:52.1]} 14. Bxc6 {[%clk
0:01:28.9]} 14... Qxc6 {[%clk 0:01:53]} 15. cxd5 {[%clk 0:01:05]} 15... Bxd5
{[%clk 0:01:50.7]} 16. Nc3 {[%clk 0:01:04.6]} 16... Bxg2 {[%clk 0:01:49.6]} 17.
Rh2 {[%clk 0:01:04.8]} 17... e5 {[%clk 0:01:46.5]} 18. dxe5 {[%clk 0:01:00.1]}
18... O-O-O {[%clk 0:01:46.1]} 19. Rc1 {[%clk 0:00:54.7]} 19... g3 {[%clk
0:01:32.3]} 20. fxg3 {[%clk 0:00:50.7]} 20... fxe5 {[%clk 0:01:31.6]} 21. Bxe5
{[%clk 0:00:50]} 21... Bc5 {[%clk 0:01:25.4]} 22. Bxh8 {[%clk 0:00:38.6]} 22...
Bxe3 {[%clk 0:01:21.1]} 23. Nce4 {[%clk 0:00:32]} 23... Bxd2+ {[%clk 0:01:03.3]}
24. Nxd2 {[%clk 0:00:24.1]} 24... Re8+ {[%clk 0:01:01]} 25. Kf2 {[%clk
0:00:18.6]} 25... Qb6+ {[%clk 0:01:01]} 26. Kxg2 {[%clk 0:00:18.4]} 26... Ne3+
{[%clk 0:01:01.1]} 27. Kh1 {[%clk 0:00:15.3]} 27... Nxd1 {[%clk 0:01:00.7]} 28.
Rxd1 {[%clk 0:00:16.2]} 28... Rxh8 {[%clk 0:00:58.6]} 29. Re2 {[%clk 0:00:15.3]}
29... Qxb2 {[%clk 0:00:51.3]} 30. Rde1 {[%clk 0:00:15.2]} 30... Qxa3 {[%clk
0:00:50.1]} 31. Ne4 {[%clk 0:00:15.4]} 31... a5 {[%clk 0:00:48.5]} 32. Nf6
{[%clk 0:00:13.4]} 32... Qf3+ {[%clk 0:00:45.5]} 0-1

[Event "*** Titled Tuesday Blitz"]
[Site "Chess.com"]
[Date "2021.02.02"]
[Round "8"]
[White "alexrustemov"]
[Black "remi04"]
[Result "1/2-1/2"]
[WhiteElo "2764"]
[BlackElo "2622"]
[TimeControl "180+1"]
[EndTime "11:29:19 PST"]
[Termination "Game drawn by agreement"]

1. d4 {[%clk 0:03:00.9]} 1... d5 {[%clk 0:02:59.4]} 2. c4 {[%clk 0:03:00.7]}
2... c6 {[%clk 0:02:59.7]} 3. Nc3 {[%clk 0:03:00.7]} 3... Nf6 {[%clk 0:02:59.5]}
4. e3 {[%clk 0:03:01.1]} 4... e6 {[%clk 0:03:00.1]} 5. Nf3 {[%clk 0:03:01.1]}
5... Nbd7 {[%clk 0:03:00.3]} 6. Qc2 {[%clk 0:03:01.4]} 6... dxc4 {[%clk
0:02:57.4]} 7. Bxc4 {[%clk 0:03:00.5]} 7... b5 {[%clk 0:02:57.5]} 8. Bd3 {[%clk
0:03:00.4]} 8... Bb7 {[%clk 0:02:57]} 9. O-O {[%clk 0:03:00.3]} 9... Bd6 {[%clk
0:02:56.7]} 10. e4 {[%clk 0:03:00.5]} 10... e5 {[%clk 0:02:56.6]} 11. dxe5
{[%clk 0:02:57.5]} 11... Nxe5 {[%clk 0:02:56.7]} 12. Nxe5 {[%clk 0:02:57]} 12...
Bxe5 {[%clk 0:02:57]} 13. f4 {[%clk 0:02:57.5]} 13... Qb6+ {[%clk 0:02:06.7]}
14. Kh1 {[%clk 0:02:56]} 14... Bxc3 {[%clk 0:02:02]} 15. bxc3 {[%clk 0:02:54]}
15... Rd8 {[%clk 0:01:55.4]} 16. Ba3 {[%clk 0:02:35.2]} 16... Ng4 {[%clk
0:01:51.1]} 17. Qe2 {[%clk 0:02:33.5]} 17... h5 {[%clk 0:01:46.2]} 18. Rae1
{[%clk 0:02:26.6]} 18... a5 {[%clk 0:01:33.5]} 19. h3 {[%clk 0:02:18.5]} 19...
b4 {[%clk 0:01:25.5]} 20. cxb4 {[%clk 0:02:17.4]} 20... axb4 {[%clk 0:01:25.3]}
21. Bb2 {[%clk 0:02:18]} 21... Rxd3 {[%clk 0:01:12.6]} 22. Qxd3 {[%clk
0:02:13.8]} 22... Nf2+ {[%clk 0:01:11.4]} 23. Rxf2 {[%clk 0:02:14.1]} 23... Qxf2
{[%clk 0:01:11.9]} 24. Rd1 {[%clk 0:01:30.8]} 24... O-O {[%clk 0:01:11]} 25. Be5
{[%clk 0:01:10.7]} 25... c5 {[%clk 0:01:04.7]} 26. Ra1 {[%clk 0:00:39.6]} 26...
f6 {[%clk 0:00:57.7]} 27. Bd6 {[%clk 0:00:36.4]} 27... Re8 {[%clk 0:00:54]} 28.
Qf3 {[%clk 0:00:36.9]} 28... Qd4 {[%clk 0:00:34.6]} 29. Rd1 {[%clk 0:00:35.7]}
29... Rxe4 {[%clk 0:00:33.2]} 30. Rxd4 {[%clk 0:00:28]} 30... Re1+ {[%clk
0:00:32.2]} 31. Kh2 {[%clk 0:00:27.8]} 31... Bxf3 {[%clk 0:00:33.1]} 32. Rd2
{[%clk 0:00:24.3]} 32... Re2 {[%clk 0:00:29.8]} 33. Rxe2 {[%clk 0:00:22.8]}
33... Bxe2 {[%clk 0:00:30]} 34. Bxc5 {[%clk 0:00:23.5]} 34... Bc4 {[%clk
0:00:30.6]} 35. Bxb4 {[%clk 0:00:23.5]} 35... Bxa2 {[%clk 0:00:31.1]} 1/2-1/2